Cogmind - Beta 16 @@@ ROGUE MODE // 2025.11.14 @ 11:33:42 Player: C0-2MO Result: Destroyed by Y-45 Defender with Heavy Assault Rifle Performance ------------- Evolutions (2) 1000 Regions Visited (4) 800 Robots Destroyed (0) 0 Value Destroyed (0) 0 Prototype IDs (0) 0 Alien Tech Used (0) 0 Bonus (470) 470 TOTAL SCORE: 2270 Bonus ------- Pacifist 470 Cogmind --------- Core Integrity 0/550 Matter 230/300 Energy 98/100 System Corruption 0% Temperature Cool (0) Movement Core (50) Location -8/Storage Parts ------- > --- POWER (1) -------- (None) > --- PROPULSION (4) --- (None) > --- UTILITY (4) ------ Advanced Weight Redist. System > --- WEAPON (2) ------- (None) > --- INVENTORY (5) ---- Sensor Array Grenade Launcher Peak State ------------ > --- POWER ------------ (None) > --- PROPULSION ------- Cesium-ion Thruster > --- UTILITY ---------- Weight Redist. System > --- WEAPON ----------- Greatsword > --- INVENTORY -------- Sensor Array [Rating: 13] Favorites ----------- Power None Propulsion Cesium-ion Thruster Flight Unit Cesium-ion Thruster Utility Weight Redist. System Device Weight Redist. System Weapon Greatsword Ballistic Gun Light Assault Rifle Impact Weapon Heavy Hammer Slashing Weapon Greatsword Build | -11 -10 -9 -8 -8 ------- Run | Yrd Mat Mat Mat Sto Slots Evolved 4 | . . 2 2 . Power . | . . . . . Propulsion 2 | . . 2 . . Utility 2 | . . . 2 . Weapon . | . . . . . Parts Attached 8 | 1 . 2 3 2 Power . | . . . . . Engine . | . . . . . Core . | . . . . . Reactor . | . . . . . Propulsion 1 | . . . 1 . Treads . | . . . . . Leg . | . . . . . Wheel . | . . . . . Hover . | . . . . . Flight 1 | . . . 1 . Utility 3 | . . 1 1 1 Device 3 | . . 1 1 1 Storage . | . . . . . Processor . | . . . . . Hackware . | . . . . . Protection . | . . . . . Artifact . | . . . . . Weapon 4 | 1 . 1 1 1 Energy Gun . | . . . . . Energy Cannon . | . . . . . Ballistic Gun 1 | 1 . . . . Ballistic Cannon . | . . . . . Launcher . | . . . . . Special Weapon . | . . . . . Impact Weapon 2 | . . 1 . 1 Slashing Weapon 1 | . . . 1 . Piercing Weapon . | . . . . . Special Melee Weapon . | . . . . . Unidentified Prototypes . | . . . . . Parts Lost 4 | . . . . 4 Power . | . . . . . Propulsion 1 | . . . . 1 Utility 1 | . . . . 1 Weapon 2 | . . . . 2 Highest Loss Streak 4 | . . . . 4 To Critical Strikes . | . . . . . Average Backups 1 | . . . 1 2 Power . | . . . . . Propulsion . | . . . . . Utility . | . . . 1 1 Weapon . | . . . . 1 Tool/Special . | . . . . . Unused Backups 1 | . . . . 1 Power . | . . . . . Propulsion . | . . . . . Utility . | . . . . . Weapon 1 | . . . . 1 Tool/Special . | . . . . . Average Slot Usage (%) 17 | . 14 11 18 22 Flight 2 | . . . 2 4 Device 5 | . . . 6 10 Ballistic Gun 3 | . 14 8 . . Impact Weapon 2 | . . 2 4 1 Slashing Weapon 3 | . . . 4 6 Peak Build Rating 13 | 1 1 4 13 13 Average Rating 6 | . 1 1 7 9 On Entrance 3 | . 1 1 2 13 Avg Prop Armor Cover (%) . | . . . . . Naked Turns . | . . . . . Heaviest Build 5 | 1 1 3 5 5 Greatest Support 12 | 3 3 3 9 12 Greatest Overweight (x) 1 | . . . . 1 Average Overweight (x) . | . . . . . Largest Inventory Capacity 5 | 5 5 5 5 5 Average Capacity 5 | 5 5 5 5 5 Most Carried 2 | . . 1 2 2 Average Carried 1 | . . . 1 2 Final Capacity 5 | 5 5 5 5 5 Final Carried 2 | . . 1 2 2 Class Distribution -------------------- 100% | Mutant Dominant Class ---------------- Mutant | -10/Materials Mutant | -9/Materials Mutant | -8/Materials Mutant | -8/Storage Resources | -11 -10 -9 -8 -8 ----------- Run | Yrd Mat Mat Mat Sto Matter Collected 180 | 180 . . . . Remotely . | . . . . . Salvage Created . | . . . . . Parts . | . . . . . Haulers Intercepted . | . . . . . Recyclers Shooed . | . . . . . Parts Field Recycled . | . . . . . Retrieved Matter . | . . . . . Parts Self-Destructed . | . . . . . Prevented . | . . . . . Parts Restored . | . . . . . Kills | -11 -10 -9 -8 -8 ------- Run | Yrd Mat Mat Mat Sto Combat Hostiles Destroyed . | . . . . . Classes Destroyed . | . . . . . Best Kill Streak . | . . . . . Combat Bots Only . | . . . . . Max Kills in Single Turn . | . . . . . Gunslinging . | . . . . . Exploded . | . . . . . Melee . | . . . . . Uniques/NPCs Destroyed . | . . . . . Combat | -11 -10 -9 -8 -8 -------- Run | Yrd Mat Mat Mat Sto Hostile Shots Fired 86 | . . . 12 74 Missed 33 | . . . 5 28 Hits 53 | . . . 7 46 Projectile 53 | . . . 7 46 Critical Strikes 4 | . . . . 4 Damage Taken 820 | . . . 112 708 Core 564 | . . . 62 502 Absorbed by Shields . | . . . . . Core Remaining (%) 100 | 100 100 100 . . Volleys Fired . | . . . . . Largest . | . . . . . Hottest . | . . . . . Shots Fired . | . . . . . Gun . | . . . . . Cannon . | . . . . . Launcher . | . . . . . Special . | . . . . . Kinetic . | . . . . . Thermal . | . . . . . Explosive . | . . . . . Electromagnetic . | . . . . . Robot Hit Streak . | . . . . . Robot Miss Streak . | . . . . . Penetration Max . | . . . . . Secondary Targets . | . . . . . Shots Hit Robots 1 | . . . . 1 Core Hits . | . . . . . Critical Kills . | . . . . . Critical Parts Destroyed . | . . . . . Critical Strikes . | . . . . . Melee Attacks 5 | . . . 2 3 Impact 3 | . . . 1 2 Slashing 2 | . . . 1 1 Piercing . | . . . . . Sneak Attacks . | . . . . . Combat Hostiles . | . . . . . Follow-up Attacks . | . . . . . Damage Inflicted 52 | . . . . 52 Guns . | . . . . . Cannons . | . . . . . Explosions . | . . . . . Melee 31 | . . . . 31 Ramming 21 | . . . . 21 Kinetic . | . . . . . Thermal . | . . . . . Explosive . | . . . . . Electromagnetic . | . . . . . Impact 31 | . . . . 31 Slashing . | . . . . . Piercing . | . . . . . Highest Corruption . | . . . . . Average Corruption . | . . . . . Corruption Purged . | . . . . . Corruption Blocked . | . . . . . Overload Shots . | . . . . . Overflow Damage . | . . . . . Projectiles . | . . . . . Explosions . | . . . . . Melee . | . . . . . Knockbacks 1 | . . . . 1 Impact 1 | . . . . 1 Kinetic . | . . . . . Secondary . | . . . . . Self-Inflicted Damage 9 | . . . . 9 Shots . | . . . . . Rammed 3 | . . . . 3 Targets Rammed 3 | . . . . 3 Kicked . | . . . . . Crushed . | . . . . . Highest Temperature 5 | . . . . 5 Average Temperature 5 | . . . . 5 Received Heat Transfer 351 | . . . 36 315 Siege Activations . | . . . . . Martial Activations . | . . . . . Shielding Activations . | . . . . . Robots Disrupted . | . . . . . Combat Hostiles . | . . . . . Robots Corrupted . | . . . . . Combat Hostiles . | . . . . . Parts Fried . | . . . . . Impact Corruptions . | . . . . . Robots Melted . | . . . . . Combat Hostiles . | . . . . . Parts Melted . | . . . . . Heat Transferred . | . . . . . Parts Sabotaged . | . . . . . Parts Stolen . | . . . . . Parts Stripped . | . . . . . Power Chain Reactions . | . . . . . Alert | -11 -10 -9 -8 -8 ------- Run | Yrd Mat Mat Mat Sto Maximum Alert Level . | . . . . . Low Security (%) 100 | 100 100 100 100 100 Level 1 . | . . . . . Level 2 . | . . . . . Level 3 . | . . . . . Level 4 . | . . . . . Level 5 . | . . . . . High Security . | . . . . . Max Security . | . . . . . Peak Influence 91 | . 8 5 15 91 Initial 1 | . . . 1 1 Average 16 | . . . 4 37 Influence Increases 200 | . 8 15 17 160 Successful Hack 16 | . 8 . . 8 Destroy Structure 4 | . . . 2 2 Partial Spotted 30 | . . . 15 15 Lose Combat Pursuer 150 | . . 15 . 135 Influence Decreases 129 | . 8 10 16 95 Entered New Map 9 | . . . 4 5 Time Decay 80 | . 8 10 12 50 Lost Part 40 | . . . . 40 Squads Dispatched 3 | . . . . 3 Investigation 1 | . . . . 1 Extermination . | . . . . . Reinforcement 2 | . . . . 2 Assault . | . . . . . Garrison . | . . . . . Intercept . | . . . . . Searches Triggered . | . . . . . Construction Impeded . | . . . . . Haulers Reinforced . | . . . . . Active Scanning Responses . | . . . . . Cargo Convoy Interrupts . | . . . . . Stealth | -11 -10 -9 -8 -8 --------- Run | Yrd Mat Mat Mat Sto Distress Signals . | . . . . . Communications Jammed . | . . . . . Distress Signals . | . . . . . Times Spotted 40 | . 2 5 9 24 Peak Tracking Total 15 | . 2 5 11 15 Tactical Retreats 3 | . . 1 . 2 Traps | -11 -10 -9 -8 -8 ------- Run | Yrd Mat Mat Mat Sto Traps Triggered . | . . . . . Indirectly . | . . . . . Trap Hack Attempts . | . . . . . Triggered . | . . . . . Disarmed . | . . . . . Reprogrammed . | . . . . . Reused . | . . . . . Traps Extracted . | . . . . . Installed . | . . . . . Triggered . | . . . . . Machines | -11 -10 -9 -8 -8 ---------- Run | Yrd Mat Mat Mat Sto Machines Disabled . | . . . . . Max in Single Turn . | . . . . . Machines Repaired . | . . . . . Machines Dismantled . | . . . . . Machines Sabotaged . | . . . . . Overloaded Fab Kills . | . . . . . Hacking | -11 -10 -9 -8 -8 --------- Run | Yrd Mat Mat Mat Sto Machines Accessed 4 | . 1 . . 3 Terminals 4 | . 1 . . 3 Fabricators . | . . . . . Repair Stations . | . . . . . Recycling Units . | . . . . . Scanalyzers . | . . . . . Garrison Access . | . . . . . Total Hacks 12 | . 3 . . 9 Successful 3 | . 1 . . 2 Failed 9 | . 2 . . 7 Catastrophic 2 | . . . . 2 Database Lockouts . | . . . . . Manual 7 | . . . . 7 Terminals 12 | . 3 . . 9 Fabricators . | . . . . . Repair Stations . | . . . . . Recycling Units . | . . . . . Scanalyzers . | . . . . . Garrison Access . | . . . . . Terminal Hacks 3 | . 1 . . 2 Open Door 1 | . . . . 1 Level Access Points 1 | . 1 . . . Branch Access Points 1 | . . . . 1 Fabricator Hacks . | . . . . . Repair Station Hacks . | . . . . . Recycling Unit Hacks . | . . . . . Scanalyzer . | . . . . . Garrison Access Hacks . | . . . . . Unauthorized Hacks . | . . . . . Terminals . | . . . . . Fabricators . | . . . . . Repair Stations . | . . . . . Recycling Units . | . . . . . Scanalyzers . | . . . . . Garrison Access . | . . . . . Data Cores Recovered . | . . . . . Used . | . . . . . Hacking Detections 3 | . 1 . . 2 Full Trace Events 2 | . 1 . . 1 Feedback Events . | . . . . . Feedback Blocked . | . . . . . Robot Schematics Acquired . | . . . . . Robots Built . | . . . . . Authchips . | . . . . . Time . | . . . . . Total Robot Build Rating . | . . . . . Part Schematics Acquired . | . . . . . Parts Built . | . . . . . Authchips . | . . . . . Time . | . . . . . Total Part Build Rating . | . . . . . Part Studies Acquired . | . . . . . Parts Repaired . | . . . . . Time . | . . . . . Parts Recycled . | . . . . . Recycled Matter . | . . . . . Retrieved Matter . | . . . . . Retrieved Components . | . . . . . Parts Scanalyzed . | . . . . . Part Schematics Acquired . | . . . . . Parts Damaged . | . . . . . Bothacking | -11 -10 -9 -8 -8 ------------ Run | Yrd Mat Mat Mat Sto Used RIF Installer . | . . . . . Robots Hacked . | . . . . . Non-combat . | . . . . . Combat . | . . . . . Robot Hacks Applied . | . . . . . Relay Couplers Released . | . . . . . Fabnet Peak Effective % . | . . . . . Robots Rewired . | . . . . . Allies Hacked . | . . . . . Hacks Repelled . | . . . . . Allies | -11 -10 -9 -8 -8 -------- Run | Yrd Mat Mat Mat Sto Total Allies . | . . . . . Largest Group . | . . . . . Highest-Rated Group . | . . . . . Highest-Rated Ally . | . . . . . Total Orders . | . . . . . Ally Attacks . | . . . . . Total Damage . | . . . . . Kills . | . . . . . Allies Corrupted . | . . . . . Allies Melted . | . . . . . Intel | -11 -10 -9 -8 -8 ------- Run | Yrd Mat Mat Mat Sto Active Infowar (turns) 4 | . . 4 . . Sensors 4 | . . 4 . . Robot Analysis Total . | . . . . . Derelict Logs Recovered . | . . . . . Drone Launches . | . . . . . Drone Recoveries . | . . . . . Exploration | -11 -10 -9 -8 -8 ------------- Run | Yrd Mat Mat Mat Sto Turns Passed 265 | 11 43 40 66 105 Spaces Moved 520 | 18 86 72 122 222 Core 338 | 18 86 72 76 86 Treads . | . . . . . Legs . | . . . . . Wheels . | . . . . . Hover . | . . . . . Flight 182 | . . . 46 136 Fastest Speed 35 | 50 50 50 35 35 Average Speed 44 | 50 50 50 44 41 Slowest Speed 100 | 50 50 50 50 100 Overloaded Moves . | . . . . . Propulsion Burnouts . | . . . . . Robots Hopped 11 | . . . 4 7 Potential Cave-ins . | . . . . . Cave-ins Triggered . | . . . . . Exploration Rate (%) 24 | 2 33 15 30 43 Regions Visited 4 Branch Regions 1 Pre-discovered Areas . | . . . . . Known Exits Taken 1 | . 1 . . . Unknown Exits Taken 3 | 1 . 1 1 . Scrap Searched . | . . . . . Spaces Dug 4 | . . . 2 2 Terrain Destroyed 4 | . . . 2 2 Melee 4 | . . . 2 2 Projectile . | . . . . . AOE . | . . . . . Terrain Rammed . | . . . . . Walls Destroyed . | . . . . . Machines Disabled . | . . . . . Actions | -11 -10 -9 -8 -8 --------- Run | Yrd Mat Mat Mat Sto Total 525 | 18 85 75 124 223 Wait . | . . . . . Move 495 | 17 85 71 113 209 Hop 10 | . . . 4 6 Pick Up 1 | . . . 1 . Fast Attach 8 | 1 . 2 3 2 Attach . | . . . . . Detach 1 | . . 1 . . Swap . | . . . . . Drop 2 | . . 1 1 . Fire . | . . . . . Melee 5 | . . . 2 3 Ram 3 | . . . . 3 Kick . | . . . . . Crush . | . . . . . Escape Stasis . | . . . . . Rewire . | . . . . . Trap . | . . . . . Miscellaneous . | . . . . . Route ------- -11/Scrapyard -10/Materials (discovered 3 exits: *Mat x3) -9/Materials -8/Materials -8/Storage (discovered 1 exit: Rec) History --------- Turn | Location | Event 3 | -11/Scrapyard | Discovered new exit (range 15) 12 | -11/Scrapyard | Entered Materials 28 | -10/Materials | Identified exit to Materials 55 | -10/Materials | Entered another Materials area 55 | -9/Materials | Evolved 2 slots: Propulsion x2 92 | -9/Materials | Discovered new exit (range 7) 95 | -9/Materials | Entered another Materials area 95 | -8/Materials | Evolved 2 slots: Utility x2 152 | -8/Materials | Discovered new exit (range 15) 161 | -8/Materials | Entered Storage 235 | -8/Storage | Core integrity fell below 50% 245 | -8/Storage | Identified exit to Recycling 263 | -8/Storage | Core integrity fell below 20% 266 | -8/Storage | Destroyed by Y-45 Defender with Heavy Assault Rifle Last Messages --------------- 00220_ O-16 Technician knocked back. 00221_ Slammed into Y-45 Defender. 00227_ Critical hit (Burn: +37). 00227_ Penetrated by Slug. 00230_ Greatsword destroyed. 00230_ Critical hit (Burn: +37). 00235_ Acquired Adv. Weight Redist. System. 00241_ ALERT: Hostiles spotted, dispatching reinforcements to Terminal S005. 00245_ Connecting with Terminal... >>Access(Branch) Found 1 branch access point: (13,63) Recycling Map updated. 00247_ Acquired Flail. 00256_ Weight Redist. System destroyed. 00262_ Critical hit (Burn: +37). 00263_ Flail destroyed. 00264_ K-01 Serf cleans the Transfer Shaft. 00266_ Penetrated by Slug. Map ----- +----------------------------------------------------+ | #??????????????????#/##### #?????????????# | | #?????????????????? ???# +?????????????# | | #?????????????????? "???# #?????????????# | | #?????????????????? ???# #???????????### | | +?????????????????? "???# #???????????# | | #?????????????????? ???# #???????????# | | #??????????????????#######/## #???????????# | | #??????????????????# """" # #???????????# | | #??????????????????# ""R" # #???????????# | | ????????????????### "" " # #???????????# | | ?????????????????#"" # #???????????### | | ?????????????????#"T " #?????????????? | | ?????????????????#"" """"" # #?????????????? | | ????????????????????### """"" # #?????????????? | | ?????????????????????# """"" # #?????????????? | | ?????????????????????## # #?????????????? | | ??????????????????????#######/## #?????????????? | | ????????????????????????????# ##########?????????? | | ????????????????????????????# #??# [#?????????? | | ????????????????????????????# #??# ### #???? | | ????????????????????????????#g#??# ] !+ ??????? | | ?????????????????????????####h#### ]#?????????? | | ?????????????????????????# + #?????????? | | ????????????###########??# Y ###+###### #????? | | ???????????# ## #????? | | ???????????# b@ k + | | ???????????# k g## """ T ####### | | ???????????# ???# """ ##??????????? | | ???????????# ????# g """ #???????????? | | ???????????#######+#"##### g #???????????? | | ???????????????# + "?????????? | | ???????????????# ################+# "?????????? | | ???????????????# ?????????????????? ###?????????? | | ???????????????#???????????????????? ???????????? | | ???????????????????????????????????? ##??????????? | | ???????????????????????????????????? #???????????? | | ???????????????????????????????????? #???????????? | | ???????????????????????????????????? ????????????? | | ???????????????????????????????????? ????????????? | | ?????????????????????????????????????????????????? | | ?????????????????????????????????????????????????? | | ?????????????????????????????????????????????????? | | ?????????????????????????????????????????????????? | | ?????>???????????????????????????????????????????? | | ?????????????????????????????????????????????????? | | ?????????????????????????????????????????????????? | | ?????????????????????????????????????????????????? | | ?????????????????????????????????????????????????? | | ?????????????????????????????????????????????????? | | ?????????????????????????????????????????????????? | +----------------------------------------------------+ Best States ------------- Heat Dissipation 31 Energy Generation 5 Energy Capacity 100 Matter Stores 270 Matter Capacity 300 Sight Range 16 Terrain Scan Density 10 Additional Mass Support 6 Evasion (%) 63 Item Schematics ----------------- None Robot Schematics ------------------ None Fabricated ------------ Nothing Repaired ---------- Nothing Studied --------- None Alien Tech Used ----------------- None Achievements -------------- None Challenges ------------ None Game ------ Seed CoilWeldingExtrapolator Manual? 0 Play Time 00:07:46 Cumulative 650.0 hours Start 2025.11.14 @ 11:28:05 End 2025.11.14 @ 11:33:42 Sessions 1 Manual Loads 0 Difficulty Rogue Special Mode None Game No. 271 Rogue 271 Adventurer 0 Explorer 0 Win Type - Total 54 Types 26/4/8/3/6/1/0/3/0/3 Lore% 96 Gallery% 89 Achievement% 77 Wizard Run 0 Options --------- Layout 1 ASCII 0 Keyboard 0 Movement Numpad Keybinds 0 Fullscreen 1 Font 24/Smallcaps Map View 50x35 Zoom Use 0% Tactical HUD 1 Map Filters NONE Filters NONE Steam 1 RUN: 353c1e30-b587-4885-842a-c5d23d8b8a44